[Event "Titled Tuesday Blitz April 11 Late 2023"]
[White "Rose, Felix"]
[Black "Ferreira, Vitor Hugo Vieira"]
[WhiteFideId "5105722"]
[BlackFideId "2119765"]
[WhiteElo "2039"]
[BlackElo "2146"]
[Result "1-0"]
[Round "02"]
[TimeControl "180+2"]
[Date "2023.04.11"]
[WhiteClock "0:00:05"]
[BlackClock "0:00:45"]

1. e4 {[%clk 0:03:00]}  c5 {[%clk 0:02:57]} 2. Nf3 {[%clk 0:03:00]}  d6 {[%clk 0:02:56]} 3. d4 {[%clk 0:03:00]}  cxd4 {[%clk 0:02:57]} 4. Nxd4 {[%clk 0:03:01]}  Nf6 {[%clk 0:02:57]} 5. Nc3 {[%clk 0:02:58]}  a6 {[%clk 0:02:56]} 6. Be3 {[%clk 0:02:59]}  e5 {[%clk 0:02:56]} 7. Nb3 {[%clk 0:02:59]}  Be6 {[%clk 0:02:56]} 8. f3 {[%clk 0:03:00]}  h5 {[%clk 0:02:56]} 9. Nd5 {[%clk 0:02:58]}  Bxd5 {[%clk 0:02:56]} 10. exd5 {[%clk 0:02:58]}  g6 {[%clk 0:02:56]} 11. a4 {[%clk 0:02:57]}  b6 {[%clk 0:02:56]} 12. Be2 {[%clk 0:02:55]}  Bg7 {[%clk 0:02:55]} 13. O-O {[%clk 0:02:53]}  O-O {[%clk 0:02:55]} 14. Qd2 {[%clk 0:02:51]}  Nbd7 {[%clk 0:02:55]} 15. Rfc1 {[%clk 0:02:44]}  Nc5 {[%clk 0:02:55]} 16. Nxc5 {[%clk 0:02:39]}  bxc5 {[%clk 0:02:54]} 17. a5 {[%clk 0:02:33]}  Re8 {[%clk 0:02:54]} 18. Rab1 {[%clk 0:02:14]}  e4 {[%clk 0:02:54]} 19. Kh1 {[%clk 0:01:43]}  Nd7 {[%clk 0:02:44]} 20. f4 {[%clk 0:01:35]}  Qh4 {[%clk 0:02:34]} 21. b4 {[%clk 0:01:28]}  cxb4 {[%clk 0:02:33]} 22. Rxb4 {[%clk 0:01:27]}  Nf6 {[%clk 0:02:31]} 23. h3 {[%clk 0:01:18]}  Ng4 {[%clk 0:02:30]} 24. Bxg4 {[%clk 0:00:52]}  hxg4 {[%clk 0:02:28]} 25. Kh2 {[%clk 0:00:36]}  gxh3 {[%clk 0:01:41]} 26. g3 {[%clk 0:00:36]}  Qg4 {[%clk 0:01:38]} 27. c4 {[%clk 0:00:31]}  Rab8 {[%clk 0:01:36]} 28. Rcb1 {[%clk 0:00:28]}  Rbc8 {[%clk 0:01:31]} 29. Qd1 {[%clk 0:00:23]}  Qf5 {[%clk 0:01:28]} 30. g4 {[%clk 0:00:19]}  Qd7 {[%clk 0:01:28]} 31. Kxh3 {[%clk 0:00:18]}  g5 {[%clk 0:01:09]} 32. f5 {[%clk 0:00:17]}  Be5 {[%clk 0:01:08]} 33. Bxg5 {[%clk 0:00:15]}  Kg7 {[%clk 0:01:08]} 34. Kg2 {[%clk 0:00:15]}  Rh8 {[%clk 0:01:07]} 35. Rb7 {[%clk 0:00:11]}  Rh2+ {[%clk 0:01:07]} 36. Kg1 {[%clk 0:00:12]}  Qe8 {[%clk 0:01:06]} 37. f6+ {[%clk 0:00:10]}  Kg6 {[%clk 0:01:05]} 38. Be3 {[%clk 0:00:08]}  Rh1+ {[%clk 0:01:04]} 39. Kxh1 {[%clk 0:00:07]}  Qh8+ {[%clk 0:01:05]} 40. Kg1 {[%clk 0:00:07]}  Qh2+ {[%clk 0:01:05]} 41. Kf1 {[%clk 0:00:08]}  Qh1+ {[%clk 0:01:02]} 42. Ke2 {[%clk 0:00:08]}  Qf3+ {[%clk 0:01:01]} 43. Kd2 {[%clk 0:00:09]}  Rxc4 {[%clk 0:01:01]} 44. Qxf3 {[%clk 0:00:09]}  exf3 {[%clk 0:01:01]} 45. Rc1 {[%clk 0:00:07]}  Rxg4 {[%clk 0:00:59]} 46. Rf1 {[%clk 0:00:06]}  Rg2+ {[%clk 0:00:57]} 47. Kd3 {[%clk 0:00:07]}  Rg3 {[%clk 0:00:55]} 48. Rb6 {[%clk 0:00:06]}  Kxf6 {[%clk 0:00:55]} 49. Rxa6 {[%clk 0:00:05]}  Kf5 {[%clk 0:00:55]} 50. Ra8 {[%clk 0:00:05]}  Bg7 {[%clk 0:00:49]} 51. a6 {[%clk 0:00:05]}  Ke5 {[%clk 0:00:49]} 52. a7 {[%clk 0:00:05]}  Kxd5 {[%clk 0:00:48]} 53. Re8 {[%clk 0:00:06]}  f2 {[%clk 0:00:45]} 54. a8=Q# {[%clk 0:00:05]} 1-0


[Site "https://www.chess.com"]

[Event "Titled Tuesday Blitz April 11 Late 2023"]
[White "Araujo Sanchez, Josue"]
[Black "Kopacz, Grzegorz"]
[WhiteFideId "6416896"]
[BlackFideId "1109880"]
[WhiteElo "2420"]
[BlackElo "2037"]
[Result "1-0"]
[Round "02"]
[TimeControl "180+2"]
[Date "2023.04.11"]
[WhiteClock "0:01:08"]
[BlackClock "0:00:01"]

1. d4 {[%clk 0:02:59]}  Nf6 {[%clk 0:02:58]} 2. Nf3 {[%clk 0:02:59]}  g6 {[%clk 0:02:58]} 3. e3 {[%clk 0:03:00]}  d5 {[%clk 0:02:57]} 4. Be2 {[%clk 0:03:01]}  Bg7 {[%clk 0:02:57]} 5. O-O {[%clk 0:03:02]}  O-O {[%clk 0:02:56]} 6. b3 {[%clk 0:03:02]}  c5 {[%clk 0:02:54]} 7. Bb2 {[%clk 0:03:02]}  cxd4 {[%clk 0:02:51]} 8. Nxd4 {[%clk 0:03:03]}  Nc6 {[%clk 0:02:51]} 9. Nd2 {[%clk 0:03:02]}  Bf5 {[%clk 0:02:43]} 10. Nxf5 {[%clk 0:03:01]}  gxf5 {[%clk 0:02:43]} 11. Nf3 {[%clk 0:02:49]}  e6 {[%clk 0:02:40]} 12. a3 {[%clk 0:02:41]}  Rc8 {[%clk 0:02:38]} 13. Rc1 {[%clk 0:02:40]}  Qb6 {[%clk 0:02:27]} 14. b4 {[%clk 0:02:35]}  Ne4 {[%clk 0:02:19]} 15. Bxg7 {[%clk 0:02:33]}  Kxg7 {[%clk 0:02:18]} 16. c4 {[%clk 0:02:33]}  dxc4 {[%clk 0:02:14]} 17. Bxc4 {[%clk 0:02:30]}  Rfd8 {[%clk 0:02:08]} 18. Qe2 {[%clk 0:02:28]}  a6 {[%clk 0:02:04]} 19. g3 {[%clk 0:02:27]}  Rd7 {[%clk 0:01:52]} 20. Bd3 {[%clk 0:02:19]}  Nf6 {[%clk 0:01:41]} 21. Rfe1 {[%clk 0:02:02]}  Rcd8 {[%clk 0:01:39]} 22. Bb1 {[%clk 0:02:01]}  Ne7 {[%clk 0:01:25]} 23. e4 {[%clk 0:01:53]}  fxe4 {[%clk 0:01:16]} 24. Bxe4 {[%clk 0:01:54]}  Nxe4 {[%clk 0:01:11]} 25. Qxe4 {[%clk 0:01:55]}  Ng6 {[%clk 0:01:08]} 26. h4 {[%clk 0:01:55]}  Qb5 {[%clk 0:01:02]} 27. Rc5 {[%clk 0:01:53]}  Qd3 {[%clk 0:00:54]} 28. h5 {[%clk 0:01:48]}  Qxe4 {[%clk 0:00:50]} 29. Rxe4 {[%clk 0:01:49]}  Ne7 {[%clk 0:00:49]} 30. Rg5+ {[%clk 0:01:44]}  Kf8 {[%clk 0:00:44]} 31. Kg2 {[%clk 0:01:38]}  Rd5 {[%clk 0:00:42]} 32. Rf4 {[%clk 0:01:34]}  h6 {[%clk 0:00:30]} 33. Re5 {[%clk 0:01:33]}  Nc6 {[%clk 0:00:20]} 34. Rxe6 {[%clk 0:01:32]}  Rxh5 {[%clk 0:00:20]} 35. Ref6 {[%clk 0:01:28]}  Rd7 {[%clk 0:00:19]} 36. g4 {[%clk 0:01:28]}  Rhd5 {[%clk 0:00:18]} 37. Rxh6 {[%clk 0:01:27]}  Ke7 {[%clk 0:00:16]} 38. Rh7 {[%clk 0:01:26]}  Nd8 {[%clk 0:00:16]} 39. Nh4 {[%clk 0:01:18]}  Rd3 {[%clk 0:00:10]} 40. Rh6 {[%clk 0:01:16]}  Ne6 {[%clk 0:00:09]} 41. Nf5+ {[%clk 0:01:15]}  Kd8 {[%clk 0:00:09]} 42. Rc4 {[%clk 0:01:16]}  R7d5 {[%clk 0:00:05]} 43. Rh8+ {[%clk 0:01:15]}  Kd7 {[%clk 0:00:05]} 44. Rb8 {[%clk 0:01:11]}  b5 {[%clk 0:00:03]} 45. Rb7+ {[%clk 0:01:10]}  Ke8 {[%clk 0:00:01]} 46. Rc8+ {[%clk 0:01:09]}  Rd8 {[%clk 0:00:01]} 47. Rxd8+ {[%clk 0:01:08]}  Rxd8 {[%clk 0:00:01]} 48. Ra7 {[%clk 0:01:08]} 1-0


[Site "https://www.chess.com"]

[Event "Titled Tuesday Blitz April 11 Late 2023"]
[White "Luo, Terry"]
[Black "Rian, Kapriaga"]
[WhiteFideId "30931045"]
[BlackFideId "7103263"]
[WhiteElo "2265"]
[BlackElo "2089"]
[Result "1-0"]
[Round "02"]
[TimeControl "180+2"]
[Date "2023.04.11"]
[WhiteClock "0:01:38"]
[BlackClock "0:00:01"]

1. d4 {[%clk 0:03:00]}  Nf6 {[%clk 0:02:59]} 2. Nc3 {[%clk 0:03:01]}  d5 {[%clk 0:02:58]} 3. Bf4 {[%clk 0:03:01]}  g6 {[%clk 0:02:56]} 4. e3 {[%clk 0:03:01]}  Bg7 {[%clk 0:02:52]} 5. h4 {[%clk 0:03:01]}  h5 {[%clk 0:02:50]} 6. Nf3 {[%clk 0:03:02]}  O-O {[%clk 0:02:49]} 7. Be2 {[%clk 0:03:01]}  c6 {[%clk 0:02:44]} 8. Ne5 {[%clk 0:03:01]}  Nbd7 {[%clk 0:02:42]} 9. Qd2 {[%clk 0:03:00]}  Nxe5 {[%clk 0:02:39]} 10. Bxe5 {[%clk 0:02:59]}  b5 {[%clk 0:02:37]} 11. O-O-O {[%clk 0:02:57]}  a5 {[%clk 0:02:12]} 12. f3 {[%clk 0:02:55]}  a4 {[%clk 0:02:12]} 13. a3 {[%clk 0:02:55]}  Be6 {[%clk 0:01:58]} 14. Rdg1 {[%clk 0:02:52]}  Qa5 {[%clk 0:01:49]} 15. Na2 {[%clk 0:02:33]}  Qb6 {[%clk 0:01:44]} 16. g4 {[%clk 0:02:31]}  hxg4 {[%clk 0:01:38]} 17. Bxf6 {[%clk 0:02:27]}  exf6 {[%clk 0:01:27]} 18. h5 {[%clk 0:02:27]}  c5 {[%clk 0:01:18]} 19. dxc5 {[%clk 0:02:22]}  Qxc5 {[%clk 0:01:16]} 20. Bd3 {[%clk 0:02:21]}  f5 {[%clk 0:01:06]} 21. fxg4 {[%clk 0:02:18]}  d4 {[%clk 0:01:04]} 22. exd4 {[%clk 0:02:05]}  Qxd4 {[%clk 0:00:52]} 23. c3 {[%clk 0:02:02]}  Rac8 {[%clk 0:00:36]} 24. Nb4 {[%clk 0:01:56]}  fxg4 {[%clk 0:00:19]} 25. hxg6 {[%clk 0:01:56]}  fxg6 {[%clk 0:00:18]} 26. Qg5 {[%clk 0:01:45]}  Qf4+ {[%clk 0:00:10]} 27. Qxf4 {[%clk 0:01:46]}  Rxf4 {[%clk 0:00:10]} 28. Bxg6 {[%clk 0:01:46]}  Rcf8 {[%clk 0:00:06]} 29. Re1 {[%clk 0:01:43]}  Bf5 {[%clk 0:00:06]} 30. Bxf5 {[%clk 0:01:40]}  R8xf5 {[%clk 0:00:05]} 31. Nc6 {[%clk 0:01:40]}  Rf2 {[%clk 0:00:04]} 32. Ne7+ {[%clk 0:01:40]}  Kf7 {[%clk 0:00:04]} 33. Nxf5 {[%clk 0:01:41]}  Rxf5 {[%clk 0:00:04]} 34. Ref1 {[%clk 0:01:42]}  Kg6 {[%clk 0:00:04]} 35. Rxf5 {[%clk 0:01:42]}  Kxf5 {[%clk 0:00:05]} 36. Rh5+ {[%clk 0:01:43]}  Kf4 {[%clk 0:00:04]} 37. Kd2 {[%clk 0:01:42]}  g3 {[%clk 0:00:04]} 38. Ke2 {[%clk 0:01:40]}  Kg4 {[%clk 0:00:02]} 39. Rxb5 {[%clk 0:01:39]}  Bf6 {[%clk 0:00:01]} 40. Kf1 {[%clk 0:01:38]}  Kf3 {[%clk 0:00:01]} 41. Rf5+ {[%clk 0:01:38]} 1-0


[Site "https://www.chess.com"]

[Event "Titled Tuesday Blitz April 11 Late 2023"]
[White "De Souza, Cristiano Gomes"]
[Black "Goltseva, Ekaterina"]
[WhiteFideId "2151758"]
[BlackFideId "24173770"]
[WhiteElo "2068"]
[BlackElo "2200"]
[Result "0-1"]
[Round "02"]
[TimeControl "180+2"]
[Date "2023.04.11"]
[WhiteClock "0:00:15"]
[BlackClock "0:01:46"]

1. d4 {[%clk 0:02:41]}  Nf6 {[%clk 0:02:59]} 2. c4 {[%clk 0:02:40]}  e6 {[%clk 0:02:55]} 3. Nf3 {[%clk 0:02:41]}  d5 {[%clk 0:02:54]} 4. Nc3 {[%clk 0:02:40]}  Bb4 {[%clk 0:02:53]} 5. Bg5 {[%clk 0:02:40]}  h6 {[%clk 0:02:50]} 6. Bxf6 {[%clk 0:02:39]}  Qxf6 {[%clk 0:02:51]} 7. Rc1 {[%clk 0:02:38]}  O-O {[%clk 0:02:49]} 8. e3 {[%clk 0:02:38]}  dxc4 {[%clk 0:02:45]} 9. Bxc4 {[%clk 0:02:37]}  c5 {[%clk 0:02:46]} 10. dxc5 {[%clk 0:02:36]}  Rd8 {[%clk 0:02:42]} 11. Qb3 {[%clk 0:02:31]}  Nc6 {[%clk 0:02:40]} 12. O-O {[%clk 0:02:29]}  Qg6 {[%clk 0:02:29]} 13. Nb5 {[%clk 0:02:16]}  Bxc5 {[%clk 0:02:23]} 14. Be2 {[%clk 0:01:54]}  Bb6 {[%clk 0:02:20]} 15. Rfd1 {[%clk 0:01:50]}  e5 {[%clk 0:02:06]} 16. Rxd8+ {[%clk 0:01:27]}  Bxd8 {[%clk 0:02:07]} 17. Qd5 {[%clk 0:00:54]}  Be6 {[%clk 0:02:03]} 18. Qd1 {[%clk 0:00:39]}  Bf6 {[%clk 0:01:52]} 19. Nd6 {[%clk 0:00:35]}  Rd8 {[%clk 0:01:47]} 20. Rxc6 {[%clk 0:00:15]}  bxc6 {[%clk 0:01:46]} 0-1


[Site "https://www.chess.com"]

[Event "Titled Tuesday Blitz April 11 Late 2023"]
[White "Sarkar, Justin"]
[Black "Sai Han Thiha"]
[WhiteFideId "2010011"]
[BlackFideId "13012290"]
[WhiteElo "2189"]
[BlackElo "1954"]
[Result "0-1"]
[Round "02"]
[TimeControl "180+2"]
[Date "2023.04.11"]
[WhiteClock "0:00:01"]
[BlackClock "0:00:08"]

1. d3 {[%clk 0:02:52]}  d5 {[%clk 0:00:34]} 2. g3 {[%clk 0:02:50]}  Nf6 {[%clk 0:00:34]} 3. Bg2 {[%clk 0:02:48]}  c6 {[%clk 0:00:35]} 4. Nf3 {[%clk 0:02:42]}  Bf5 {[%clk 0:00:36]} 5. O-O {[%clk 0:02:41]}  e6 {[%clk 0:00:36]} 6. Nbd2 {[%clk 0:02:38]}  h6 {[%clk 0:00:36]} 7. c4 {[%clk 0:02:35]}  Nbd7 {[%clk 0:00:35]} 8. b3 {[%clk 0:02:29]}  Be7 {[%clk 0:00:35]} 9. Bb2 {[%clk 0:02:29]}  O-O {[%clk 0:00:36]} 10. a3 {[%clk 0:02:24]}  a5 {[%clk 0:00:36]} 11. Qc2 {[%clk 0:02:21]}  Re8 {[%clk 0:00:36]} 12. e4 {[%clk 0:02:17]}  Bh7 {[%clk 0:00:34]} 13. Rfe1 {[%clk 0:02:12]}  Nc5 {[%clk 0:00:31]} 14. Rad1 {[%clk 0:02:06]}  Qb6 {[%clk 0:00:30]} 15. Qc3 {[%clk 0:01:51]}  Bf8 {[%clk 0:00:18]} 16. Ne5 {[%clk 0:01:37]}  Red8 {[%clk 0:00:18]} 17. Bf1 {[%clk 0:00:30]}  Ncd7 {[%clk 0:00:18]} 18. Nxd7 {[%clk 0:00:27]}  Rxd7 {[%clk 0:00:19]} 19. e5 {[%clk 0:00:21]}  Ne8 {[%clk 0:00:18]} 20. d4 {[%clk 0:00:18]}  Nc7 {[%clk 0:00:16]} 21. c5 {[%clk 0:00:17]}  Qa7 {[%clk 0:00:16]} 22. f4 {[%clk 0:00:13]}  Nb5 {[%clk 0:00:15]} 23. Qe3 {[%clk 0:00:12]}  b6 {[%clk 0:00:15]} 24. cxb6 {[%clk 0:00:06]}  Qxb6 {[%clk 0:00:16]} 25. a4 {[%clk 0:00:05]}  Nc7 {[%clk 0:00:15]} 26. g4 {[%clk 0:00:05]}  c5 {[%clk 0:00:14]} 27. Kh1 {[%clk 0:00:04]}  Rb8 {[%clk 0:00:12]} 28. Bc3 {[%clk 0:00:03]}  Na6 {[%clk 0:00:12]} 29. Bb5 {[%clk 0:00:02]}  Rc7 {[%clk 0:00:11]} 30. Rc1 {[%clk 0:00:02]}  Nb4 {[%clk 0:00:11]} 31. Bxb4 {[%clk 0:00:02]}  cxb4 {[%clk 0:00:10]} 32. Rxc7 {[%clk 0:00:01]}  Qxc7 {[%clk 0:00:11]} 33. f5 {[%clk 0:00:01]}  exf5 {[%clk 0:00:11]} 34. Qf3 {[%clk 0:00:01]}  fxg4 {[%clk 0:00:09]} 35. Qxd5 {[%clk 0:00:01]}  Rd8 {[%clk 0:00:08]} 0-1


[Site "https://www.chess.com"]

[Event "Titled Tuesday Blitz April 11 Late 2023"]
[White "Zaksaite, Salomeja"]
[Black "Reprintsev, Alexander"]
[WhiteFideId "12801496"]
[BlackFideId "14100541"]
[WhiteElo "2059"]
[BlackElo "2211"]
[Result "0-1"]
[Round "02"]
[TimeControl "180+2"]
[Date "2023.04.11"]
[WhiteClock "0:00:01"]
[BlackClock "0:01:02"]

1. e4 {[%clk 0:03:00]}  d5 {[%clk 0:02:59]} 2. exd5 {[%clk 0:03:00]}  Qxd5 {[%clk 0:02:59]} 3. Nc3 {[%clk 0:03:00]}  Qa5 {[%clk 0:02:59]} 4. Bc4 {[%clk 0:02:57]}  Nf6 {[%clk 0:02:59]} 5. d3 {[%clk 0:02:52]}  Bg4 {[%clk 0:02:56]} 6. f3 {[%clk 0:02:51]}  Be6 {[%clk 0:02:56]} 7. Bxe6 {[%clk 0:02:50]}  fxe6 {[%clk 0:02:57]} 8. Qe2 {[%clk 0:02:49]}  Nc6 {[%clk 0:02:57]} 9. Be3 {[%clk 0:02:45]}  Nd5 {[%clk 0:02:57]} 10. Qd2 {[%clk 0:02:32]}  g6 {[%clk 0:02:52]} 11. Nge2 {[%clk 0:02:23]}  Bg7 {[%clk 0:02:51]} 12. O-O {[%clk 0:02:19]}  O-O-O {[%clk 0:02:51]} 13. Rad1 {[%clk 0:02:11]}  Nxc3 {[%clk 0:02:39]} 14. bxc3 {[%clk 0:02:05]}  Qxa2 {[%clk 0:02:36]} 15. Ra1 {[%clk 0:02:05]}  Qd5 {[%clk 0:02:36]} 16. Rfb1 {[%clk 0:01:47]}  b6 {[%clk 0:02:34]} 17. c4 {[%clk 0:01:34]}  Qe5 {[%clk 0:02:27]} 18. Ra2 {[%clk 0:00:55]}  Rhf8 {[%clk 0:02:14]} 19. c5 {[%clk 0:00:52]}  Rd5 {[%clk 0:02:11]} 20. cxb6 {[%clk 0:00:42]}  axb6 {[%clk 0:02:10]} 21. Bf4 {[%clk 0:00:15]}  Qf6 {[%clk 0:01:48]} 22. Ra8+ {[%clk 0:00:10]}  Kb7 {[%clk 0:01:48]} 23. Rxf8 {[%clk 0:00:09]}  Qxf8 {[%clk 0:01:47]} 24. c4 {[%clk 0:00:09]}  Ra5 {[%clk 0:01:45]} 25. Be3 {[%clk 0:00:08]}  Qa8 {[%clk 0:01:45]} 26. c5 {[%clk 0:00:07]}  Ra1 {[%clk 0:01:45]} 27. Qc1 {[%clk 0:00:04]}  Rxb1 {[%clk 0:01:44]} 28. Qxb1 {[%clk 0:00:04]}  Qa1 {[%clk 0:01:44]} 29. Qxa1 {[%clk 0:00:04]}  Bxa1 {[%clk 0:01:45]} 30. Nf4 {[%clk 0:00:04]}  Bd4 {[%clk 0:01:42]} 31. Kf2 {[%clk 0:00:03]}  e5 {[%clk 0:01:39]} 32. Ne6 {[%clk 0:00:02]}  bxc5 {[%clk 0:01:37]} 33. Nf8 {[%clk 0:00:01]}  Nb4 {[%clk 0:01:26]} 34. Nxh7 {[%clk 0:00:01]}  Nxd3+ {[%clk 0:01:24]} 35. Ke2 {[%clk 0:00:02]}  Nf4+ {[%clk 0:01:22]} 36. Bxf4 {[%clk 0:00:01]}  exf4 {[%clk 0:01:22]} 37. Nf8 {[%clk 0:00:01]}  g5 {[%clk 0:01:18]} 38. Ne6 {[%clk 0:00:01]}  Bf6 {[%clk 0:01:18]} 39. Nxc5+ {[%clk 0:00:01]}  Kc6 {[%clk 0:01:18]} 40. Ne4 {[%clk 0:00:02]}  Kd5 {[%clk 0:01:18]} 41. g3 {[%clk 0:00:02]}  fxg3 {[%clk 0:01:18]} 42. hxg3 {[%clk 0:00:02]}  c5 {[%clk 0:01:18]} 43. Nf2 {[%clk 0:00:02]}  Kc4 {[%clk 0:01:17]} 44. Ng4 {[%clk 0:00:02]}  Kc3 {[%clk 0:01:14]} 45. Ne3 {[%clk 0:00:02]}  c4 {[%clk 0:01:13]} 46. f4 {[%clk 0:00:02]}  gxf4 {[%clk 0:01:13]} 47. gxf4 {[%clk 0:00:03]}  Kb3 {[%clk 0:01:08]} 48. Kd1 {[%clk 0:00:02]}  Bd4 {[%clk 0:01:04]} 49. Nd5 {[%clk 0:00:02]}  Bc5 {[%clk 0:01:03]} 50. Nc7 {[%clk 0:00:02]}  c3 {[%clk 0:01:03]} 51. Ne6 {[%clk 0:00:02]}  c2+ {[%clk 0:01:03]} 52. Ke2 {[%clk 0:00:01]}  c1=Q {[%clk 0:01:02]} 53. Nxc5+ {[%clk 0:00:01]}  Qxc5 {[%clk 0:01:02]} 0-1


[Site "https://www.chess.com"]

[Event "Titled Tuesday Blitz April 11 Late 2023"]
[White "Rios Escobar, Adan"]
[Black "Lesbekova, Assel"]
[WhiteFideId "3403645"]
[BlackFideId "13713248"]
[WhiteElo "2234"]
[BlackElo "1799"]
[Result "0-1"]
[Round "02"]
[TimeControl "180+2"]
[Date "2023.04.11"]
[WhiteClock "0:00:02"]
[BlackClock "0:00:47"]

1. d4 {[%clk 0:03:00]}  Nf6 {[%clk 0:02:58]} 2. g3 {[%clk 0:02:58]}  c5 {[%clk 0:02:57]} 3. d5 {[%clk 0:02:53]}  g6 {[%clk 0:02:56]} 4. c4 {[%clk 0:02:50]}  Bg7 {[%clk 0:02:56]} 5. Nc3 {[%clk 0:02:51]}  d6 {[%clk 0:02:55]} 6. Nf3 {[%clk 0:02:52]}  O-O {[%clk 0:02:54]} 7. Bg2 {[%clk 0:02:52]}  e5 {[%clk 0:02:52]} 8. e4 {[%clk 0:02:45]}  Ne8 {[%clk 0:02:50]} 9. h4 {[%clk 0:02:32]}  f5 {[%clk 0:02:50]} 10. Bg5 {[%clk 0:02:32]}  Qb6 {[%clk 0:02:46]} 11. Qd2 {[%clk 0:02:31]}  f4 {[%clk 0:02:38]} 12. O-O-O {[%clk 0:02:18]}  h6 {[%clk 0:02:37]} 13. gxf4 {[%clk 0:02:06]}  hxg5 {[%clk 0:02:37]} 14. fxe5 {[%clk 0:01:58]}  g4 {[%clk 0:02:33]} 15. Nh2 {[%clk 0:01:47]}  Bxe5 {[%clk 0:02:32]} 16. Kc2 {[%clk 0:01:29]}  Na6 {[%clk 0:02:30]} 17. Rdg1 {[%clk 0:01:16]}  Bd4 {[%clk 0:02:27]} 18. f3 {[%clk 0:01:03]}  g3 {[%clk 0:02:12]} 19. Nf1 {[%clk 0:01:00]}  Nb4+ {[%clk 0:02:05]} 20. Kb1 {[%clk 0:01:00]}  Qa6 {[%clk 0:02:05]} 21. h5 {[%clk 0:00:53]}  Bxg1 {[%clk 0:01:57]} 22. hxg6 {[%clk 0:00:51]}  Bh2 {[%clk 0:01:38]} 23. Nxh2 {[%clk 0:00:49]}  gxh2 {[%clk 0:01:38]} 24. Rxh2 {[%clk 0:00:49]}  Qxc4 {[%clk 0:01:06]} 25. Rh8+ {[%clk 0:00:45]}  Kg7 {[%clk 0:01:06]} 26. Qh6+ {[%clk 0:00:45]}  Kf6 {[%clk 0:01:07]} 27. Qxf8+ {[%clk 0:00:21]}  Ke5 {[%clk 0:01:02]} 28. Qxe8+ {[%clk 0:00:20]}  Kf4 {[%clk 0:01:02]} 29. Rf8+ {[%clk 0:00:17]}  Ke3 {[%clk 0:01:02]} 30. a3 {[%clk 0:00:04]}  Qd3+ {[%clk 0:00:58]} 31. Ka1 {[%clk 0:00:04]}  Nc2+ {[%clk 0:00:56]} 32. Ka2 {[%clk 0:00:04]}  Qc4+ {[%clk 0:00:55]} 33. Kb1 {[%clk 0:00:03]}  Qb3 {[%clk 0:00:54]} 34. g7 {[%clk 0:00:01]}  Nxa3+ {[%clk 0:00:53]} 35. Ka1 {[%clk 0:00:01]}  Nc2+ {[%clk 0:00:49]} 36. Kb1 {[%clk 0:00:02]}  Na3+ {[%clk 0:00:48]} 37. Ka1 {[%clk 0:00:02]}  Nc4 {[%clk 0:00:47]} 0-1


[Site "https://www.chess.com"]

[Event "Titled Tuesday Blitz April 11 Late 2023"]
[White "Sariego Figueredo, Wilfredo"]
[Black "Bochnicka, Vladimir"]
[WhiteFideId "3500080"]
[BlackFideId "14943450"]
[WhiteElo "2309"]
[BlackElo "2094"]
[Result "0-1"]
[Round "02"]
[TimeControl "180+2"]
[Date "2023.04.11"]
[WhiteClock "0:00:07"]
[BlackClock "0:00:14"]

1. d4 {[%clk 0:02:59]}  Nf6 {[%clk 0:03:00]} 2. Bf4 {[%clk 0:03:00]}  d6 {[%clk 0:03:00]} 3. Nc3 {[%clk 0:02:59]}  g6 {[%clk 0:02:57]} 4. e4 {[%clk 0:02:59]}  Bg7 {[%clk 0:02:57]} 5. Qd2 {[%clk 0:02:59]}  O-O {[%clk 0:02:52]} 6. O-O-O {[%clk 0:02:59]}  a6 {[%clk 0:02:48]} 7. Bh6 {[%clk 0:02:58]}  b5 {[%clk 0:02:48]} 8. f3 {[%clk 0:02:54]}  Nbd7 {[%clk 0:02:41]} 9. h4 {[%clk 0:02:40]}  b4 {[%clk 0:02:24]} 10. Nce2 {[%clk 0:02:39]}  c5 {[%clk 0:02:24]} 11. h5 {[%clk 0:02:37]}  Qa5 {[%clk 0:02:11]} 12. Kb1 {[%clk 0:02:31]}  c4 {[%clk 0:01:56]} 13. hxg6 {[%clk 0:02:29]}  fxg6 {[%clk 0:01:55]} 14. Bxg7 {[%clk 0:02:28]}  Kxg7 {[%clk 0:01:54]} 15. Qh6+ {[%clk 0:02:29]}  Kg8 {[%clk 0:01:55]} 16. Nf4 {[%clk 0:02:25]}  Nb6 {[%clk 0:01:10]} 17. Nxg6 {[%clk 0:02:20]}  Rf7 {[%clk 0:01:10]} 18. Nf4 {[%clk 0:02:10]}  c3 {[%clk 0:00:55]} 19. Nh5 {[%clk 0:01:40]}  cxb2 {[%clk 0:00:32]} 20. Nxf6+ {[%clk 0:01:28]}  exf6 {[%clk 0:00:33]} 21. Rh5 {[%clk 0:01:09]}  Qa3 {[%clk 0:00:32]} 22. e5 {[%clk 0:00:46]}  Na4 {[%clk 0:00:29]} 23. Ne2 {[%clk 0:00:44]}  dxe5 {[%clk 0:00:21]} 24. dxe5 {[%clk 0:00:44]}  Be6 {[%clk 0:00:21]} 25. Rg5+ {[%clk 0:00:35]}  Kh8 {[%clk 0:00:16]} 26. c4 {[%clk 0:00:07]}  bxc3 {[%clk 0:00:14]} 0-1


[Site "https://www.chess.com"]